bitfinex/quotes_BTCUSD_20220731
["timestamp","ask_amount","ask_price","bid_price","bid_amount"]
[1659299361963,0.52421107,23803.0,23802.0,0.70497658]
[1659299362187,0.57421107,23803.0,23802.0,0.70497658]
[1659299362610,0.81206507,23803.0,23802.0,0.28505458]
[1659299362827,0.9444065,23803.0,23802.0,0.28505458]
[1659299363266,0.94548401,23803.0,23802.0,0.28505458]
[1659299363473,0.89548401,23803.0,23802.0,0.28505458]
[1659299364237,0.86753935,23803.0,23802.0,0.28505458]
[1659299364881,0.92053935,23803.0,23802.0,0.28505458]
[1659299366125,0.86719792,23803.0,23802.0,0.28505458]
[1659299366404,0.56634392,23803.0,23802.0,0.31972774]
[1659299366843,0.52134392,23803.0,23802.0,0.35605458]
[1659299367291,0.82219792,23803.0,23802.0,0.35605458]
[1659299367499,0.52134392,23803.0,23802.0,0.35605458]
[1659299367928,0.82219792,23803.0,23802.0,0.35605458]
[1659299368219,0.51334392,23803.0,23802.0,0.28505458]
[1659299368434,0.81419792,23803.0,23802.0,0.28505458]
[1659299368680,0.51334392,23803.0,23802.0,0.28505458]
[1659299368899,0.52134392,23803.0,23802.0,0.35605458]
[1659299369118,1.06002248,23803.0,23802.0,0.35605458]
[1659299369775,0.06408659,23803.0,23802.0,0.65605458]
[1659299370007,0.06408659,23803.0,23802.0,0.66869806]
[1659299370238,0.05608659,23803.0,23802.0,0.63274735]
[1659299370471,0.05608659,23803.0,23802.0,1.08385992]
[1659299370698,0.05608659,23803.0,23802.0,1.38385992]
[1659299370927,0.05608659,23803.0,23802.0,1.12085992]
[1659299372290,0.05608659,23803.0,23802.0,1.19452476]
[1659299372513,0.05608659,23803.0,23802.0,1.15066952]
[1659299372738,0.05608659,23803.0,23802.0,1.00495539]
[1659299372954,0.05608659,23803.0,23802.0,1.04395539]
[1659299373625,0.10608659,23803.0,23802.0,1.04395539]
[1659299374064,0.10942802,23803.0,23802.0,0.74395539]
[1659299374287,0.10608659,23803.0,23802.0,0.70495539]
[1659299375002,0.10608659,23803.0,23802.0,0.75295539]
[1659299375425,0.64400918,23803.0,23802.0,1.0538687]
[1659299376158,0.64400918,23803.0,23802.0,1.0058687]
[1659299377043,0.64400918,23803.0,23802.0,1.0408687]
[1659299377735,0.64400918,23803.0,23802.0,1.18474434]
[1659299377736,0.10608659,23803.0,23802.0,1.18474434]
[1659299377942,0.10608659,23803.0,23802.0,1.0408687]
[1659299378177,0.66720531,23803.0,23802.0,1.0408687]
[1659299378834,0.66720531,23803.0,23802.0,1.14973966]
[1659299379049,0.66720531,23803.0,23802.0,1.18873966]
[1659299380234,0.66720531,23803.0,23802.0,1.14973966]
[1659299380656,0.66720531,23803.0,23802.0,1.0058687]
[1659299380870,0.66720531,23803.0,23802.0,1.06495539]
[1659299381572,0.6671292,23803.0,23802.0,1.20574504]
[1659299381795,0.6671292,23803.0,23802.0,1.20673991]
[1659299382245,0.6671292,23803.0,23802.0,1.14673991]
[1659299382927,0.6671292,23803.0,23802.0,1.20673991]
[1659299384312,0.6671292,23803.0,23802.0,1.14673991]
[1659299385027,0.6671292,23803.0,23802.0,1.20673991]
[1659299386354,0.10601048,23803.0,23802.0,1.14673991]
[1659299387010,0.10601048,23803.0,23802.0,1.20673991]
[1659299388135,0.10601048,23803.0,23802.0,1.14673991]
[1659299388818,0.10601048,23803.0,23802.0,1.00595026]
[1659299389007,0.10601048,23803.0,23802.0,1.2064888]
[1659299389275,0.10601048,23803.0,23802.0,1.20648823]
[1659299390136,0.10601048,23803.0,23802.0,1.00595026]
[1659299390839,0.10601048,23803.0,23802.0,1.20634772]
[1659299392225,0.10601048,23803.0,23802.0,1.14634772]
[1659299392509,0.10601048,23803.0,23802.0,1.00595026]
[1659299392739,0.10935191,23803.0,23802.0,0.70595026]
[1659299392983,0.10935191,23803.0,23802.0,0.75231191]
[1659299393204,0.10601048,23803.0,23802.0,0.75231191]
[1659299394116,0.10601048,23803.0,23802.0,1.05231191]
[1659299394376,0.10601048,23803.0,23802.0,0.99231191]
[1659299394798,0.10601048,23803.0,23802.0,0.96231191]
[1659299395037,0.10601048,23803.0,23802.0,1.02231191]
[1659299396388,0.10601048,23803.0,23802.0,1.02731612]
[1659299396612,0.10601048,23803.0,23802.0,0.96731612]
[1659299396837,0.10601048,23803.0,23802.0,0.98222554]
[1659299398417,0.10601048,23803.0,23802.0,0.92222554]
[1659299398849,0.10601048,23803.0,23802.0,0.98222554]
[1659299399974,0.10601048,23803.0,23802.0,0.57496821]
[1659299400344,0.10601048,23803.0,23802.0,0.209964]
[1659299400349,0.54477781,23803.0,23802.0,0.209964]
[1659299400551,0.84563181,23803.0,23802.0,0.209964]
[1659299400757,0.92463181,23803.0,23802.0,0.209964]
[1659299401443,0.0964865,23802.0,23801.0,0.10503456]
[1659299402206,0.0964865,23802.0,23801.0,0.104967]
[1659299402460,0.0964865,23802.0,23801.0,0.13980877]
[1659299402707,0.80896544,23800.0,23799.0,0.629948]
[1659299402933,0.91206829,23800.0,23799.0,1.034936]
[1659299403362,0.91206829,23800.0,23799.0,1.07421196]
[1659299404054,0.86206829,23800.0,23799.0,1.62248095]
[1659299404289,0.86206829,23800.0,23799.0,1.63512443]
[1659299404765,0.86206829,23800.0,23799.0,1.89563849]
[1659299404971,0.86206829,23800.0,23799.0,1.96849517]
[1659299405190,0.86206829,23800.0,23799.0,1.77168111]
[1659299405858,0.86206829,23800.0,23799.0,2.66901569]
[1659299406080,0.86206829,23800.0,23799.0,2.86582975]
[1659299406293,0.86206829,23800.0,23799.0,2.83682975]
[1659299406723,0.91206829,23800.0,23799.0,2.83682975]
[1659299406969,0.91206829,23800.0,23799.0,2.90282975]
[1659299408347,0.91206829,23800.0,23799.0,2.83682975]
[1659299409021,0.91206829,23800.0,23799.0,2.90482975]
[1659299409478,0.93826591,23800.0,23799.0,2.90482975]
[1659299410176,0.93826591,23800.0,23799.0,2.83682975]
[1659299410626,0.93826591,23800.0,23799.0,2.60021921]
[1659299410851,0.93826591,23800.0,23799.0,2.38636405]
[1659299411539,0.93826591,23800.0,23799.0,2.39900753]
[1659299412227,0.93826591,23800.0,23799.0,2.33500753]
[1659299412701,0.93826591,23800.0,23799.0,2.02916642]
[1659299412986,0.93826591,23800.0,23799.0,2.10216642]
[1659299413203,0.93826591,23800.0,23799.0,1.90535236]
[1659299414570,0.93826591,23800.0,23799.0,2.60535236]
[1659299414808,0.93826591,23800.0,23799.0,2.53235236]
[1659299415023,0.93826591,23800.0,23799.0,2.60535236]
[1659299415241,0.93826591,23800.0,23799.0,2.60487098]
[1659299415712,0.93826591,23800.0,23799.0,2.40800753]
[1659299416180,0.93826591,23800.0,23799.0,2.33500753]
[1659299416460,0.88826591,23800.0,23799.0,2.77886427]
[1659299416626,0.88826591,23800.0,23799.0,2.97620325]
[1659299416858,0.88826591,23800.0,23799.0,3.02320325]
[1659299417744,0.93826591,23800.0,23799.0,3.02320325]
[1659299418000,0.93826591,23800.0,23799.0,3.01055977]
[1659299418193,0.93826591,23800.0,23799.0,2.96355977]
[1659299418857,0.93826591,23800.0,23799.0,3.04355977]
[1659299420241,0.93826591,23800.0,23799.0,2.96355977]
[1659299420905,0.93826591,23800.0,23799.0,3.04355977]
[1659299421573,0.93826591,23800.0,23799.0,2.84622079]
[1659299422258,0.94294536,23800.0,23799.0,2.76622079]
[1659299422476,0.94294536,23800.0,23799.0,2.66123279]
[1659299422934,0.94294536,23800.0,23799.0,2.74287627]
[1659299424319,0.94294536,23800.0,23799.0,2.67387627]
[1659299424527,0.83720304,23800.0,23799.0,2.67387627]
[1659299424691,0.87811171,23800.0,23799.0,2.67387627]
[1659299424924,0.87811171,23800.0,23799.0,2.74287627]
[1659299425116,0.88075204,23800.0,23799.0,2.74287627]
[1659299426138,0.93075204,23800.0,23799.0,2.67387627]
[1659299426347,0.93075204,23800.0,23799.0,2.87121046]
[1659299426775,0.93075204,23800.0,23799.0,2.94021046]
[1659299427892,0.93075204,23800.0,23799.0,2.92756698]
[1659299428127,0.93075204,23800.0,23799.0,2.85856698]
[1659299428558,0.93075204,23800.0,23799.0,2.41940792]
[1659299428764,0.93075204,23800.0,23799.0,2.49340792]
[1659299429643,0.93075204,23800.0,23799.0,2.92842544]
[1659299429847,0.93075204,23800.0,23799.0,2.52842544]
[1659299430270,0.93075204,23800.0,23799.0,2.85442544]
[1659299430699,0.92398185,23800.0,23799.0,2.85442544]
[1659299430904,0.92398185,23800.0,23799.0,2.92342544]
[1659299431324,0.92757388,23800.0,23799.0,2.72609125]
[1659299431755,0.92757388,23800.0,23799.0,2.92342089]
[1659299432617,0.92757388,23800.0,23799.0,2.85442089]
[1659299432827,0.92757388,23800.0,23799.0,2.92342089]
[1659299433866,0.92757388,23800.0,23799.0,2.93606437]
[1659299434075,0.92757388,23800.0,23799.0,2.86706437]
[1659299434922,0.92757388,23800.0,23799.0,2.93506437]
[1659299436231,0.92757388,23800.0,23799.0,2.86706437]
[1659299436643,0.92757388,23800.0,23799.0,2.66973473]
[1659299436859,0.92757388,23800.0,23799.0,2.73773473]
[1659299437114,0.93205587,23800.0,23799.0,2.93506195]
[1659299438129,0.93205587,23800.0,23799.0,2.86706195]
[1659299438764,0.93205587,23800.0,23799.0,2.93606195]
[1659299438973,0.93205587,23800.0,23799.0,2.97796195]
[1659299439848,0.93205587,23800.0,23799.0,2.96531847]
[1659299440055,0.93205587,23800.0,23799.0,2.89631847]
[1659299440909,0.93205587,23800.0,23799.0,2.97331847]
[1659299441113,0.93373253,23800.0,23799.0,2.97331847]
[1659299442025,0.93373253,23800.0,23799.0,2.69899125]
[1659299442267,0.93150687,23800.0,23799.0,2.99631433]
[1659299442925,0.55649069,23800.0,23799.0,3.07331433]
[1659299443134,0.60649069,23800.0,23799.0,3.07331433]
[1659299443392,0.65551419,23800.0,23799.0,3.07331433]
[1659299444256,0.6669642,23800.0,23799.0,2.51939681]
[1659299444482,0.6669642,23800.0,23799.0,2.35705942]
[1659299444483,0.66362277,23800.0,23799.0,2.35705942]
[1659299444701,0.66362277,23800.0,23799.0,2.32207373]
[1659299444921,0.66362277,23800.0,23799.0,2.41371721]
[1659299445376,0.66362277,23800.0,23799.0,2.21056131]
[1659299445591,0.66362277,23800.0,23799.0,2.245547]
[1659299445832,0.66362277,23800.0,23799.0,2.0487029]
[1659299446077,0.66362277,23800.0,23799.0,1.9697029]
[1659299446730,0.66362277,23800.0,23799.0,2.2697029]
[1659299446947,0.66362277,23800.0,23799.0,2.50854751]
[1659299447161,0.66362277,23800.0,23799.0,2.3117029]
[1659299448261,0.6669642,23800.0,23799.0,2.23471721]
[1659299448491,0.66362277,23800.0,23799.0,2.43156145]
[1659299448754,0.66362277,23800.0,23799.0,2.47356145]
[1659299449847,0.66362277,23800.0,23799.0,2.27671721]
[1659299450315,0.66362277,23800.0,23799.0,2.23471721]
[1659299450788,0.66362277,23800.0,23799.0,2.27671721]
[1659299452182,0.66362277,23800.0,23799.0,2.4315575]
[1659299452620,0.66362277,23800.0,23799.0,2.23471721]
[1659299452839,0.66362277,23800.0,23799.0,2.47355736]
[1659299453061,0.66362277,23800.0,23799.0,1.57671721]
[1659299453508,0.66362277,23800.0,23799.0,1.77355765]
[1659299453731,0.66362277,23800.0,23799.0,1.57671721]
[1659299453958,0.66362277,23800.0,23799.0,1.77355645]
[1659299454203,0.66362277,23800.0,23799.0,2.43155645]
[1659299454425,0.66362277,23800.0,23799.0,2.38769971]
[1659299454639,0.66362277,23800.0,23799.0,2.19086047]
[1659299454901,0.66362277,23800.0,23799.0,2.23286047]
[1659299455563,0.66362277,23800.0,23799.0,1.52021699]
[1659299456219,0.66362277,23800.0,23799.0,1.47821699]
[1659299456884,0.66362277,23800.0,23799.0,1.71705623]
[1659299458042,0.66362277,23800.0,23799.0,2.41891297]
[1659299458474,0.66362277,23800.0,23799.0,0.05080598]
[1659299458730,0.05,23798.0,23797.0,0.654]
[1659299458961,0.05,23797.0,23793.0,0.00025673]
[1659299459192,0.05,23795.0,23793.0,0.00025673]
[1659299459418,0.14141889,23794.0,23793.0,0.00025673]
[1659299459880,0.14141889,23794.0,23792.0,0.01264438]
[1659299460112,0.14141889,23794.0,23790.0,0.19904692]
[1659299460113,0.14974241,23793.0,23791.0,0.19684692]
[1659299460335,0.09207825,23792.0,23791.0,0.19684692]
[1659299460576,0.09207825,23792.0,23790.0,0.0022]
[1659299460795,0.65173365,23791.0,23790.0,0.0022]
[1659299461018,1.03325365,23791.0,23790.0,0.0022]
[1659299461243,1.40984498,23791.0,23790.0,0.0022]
[1659299461500,1.49136498,23791.0,23790.0,0.0022]
[1659299461733,1.44136498,23791.0,23790.0,0.0022]
[1659299461961,1.40984498,23791.0,23790.0,0.0022]
[1659299462188,0.55258765,23791.0,23790.0,0.61075733]
[1659299462408,0.00771696,23794.0,23791.0,0.7]
[1659299462642,0.55481403,23800.0,23793.0,0.9637]
[1659299462643,0.61017829,23800.0,23793.0,0.9637]
[1659299462865,0.61017829,23800.0,23797.0,0.0634]
[1659299463090,0.00762067,23799.0,23797.0,0.0634]
[1659299463315,0.09374296,23798.0,23794.0,0.3]
[1659299463561,0.50575167,23797.0,23795.0,0.244371]
[1659299463809,0.55309601,23797.0,23794.0,0.3]
[1659299464276,0.55309601,23797.0,23795.0,0.27919214]
[1659299464507,0.60309601,23797.0,23796.0,0.224362]
[1659299464718,0.60309601,23797.0,23795.0,8.125e-05]
[1659299464939,0.10901452,23796.0,23795.0,0.00708125]
[1659299465193,0.15901452,23796.0,23795.0,0.007]
[1659299465634,0.16663519,23796.0,23795.0,0.007]
[1659299465857,0.95629252,23796.0,23795.0,0.007]
[1659299466082,1.00629252,23796.0,23795.0,0.007]
[1659299466327,1.00629252,23796.0,23794.0,8.125e-05]
[1659299466541,1.65794016,23795.0,23791.0,0.00032505]
[1659299466772,0.70813733,23794.0,23790.0,0.0022]
[1659299467000,1.01944708,23791.0,23790.0,0.0022]
[1659299467224,0.56944708,23791.0,23790.0,0.0022]
[1659299468124,0.57706775,23791.0,23790.0,0.0022]
[1659299468340,0.56944708,23791.0,23790.0,0.15978]
[1659299468813,0.51944708,23791.0,23790.0,0.47378]
[1659299469299,0.51944708,23791.0,23790.0,0.698214]
[1659299469528,0.51944708,23791.0,23790.0,0.50845316]
[1659299469750,0.51944708,23791.0,23790.0,0.73288716]
[1659299470270,0.51944708,23791.0,23790.0,0.71888716]
[1659299470496,0.46944708,23791.0,23790.0,0.71888716]
[1659299470948,0.46944708,23791.0,23790.0,0.79888716]
[1659299471419,0.46944708,23791.0,23790.0,0.764214]
[1659299471637,0.46944708,23791.0,23790.0,0.79888716]
[1659299471863,0.47458558,23791.0,23790.0,1.04856449]
[1659299472083,0.52458558,23791.0,23790.0,1.01046449]
[1659299472797,0.52458558,23791.0,23790.0,1.47646449]
[1659299473021,0.52458558,23791.0,23790.0,1.07646449]
[1659299473470,0.52458558,23791.0,23790.0,1.47646449]
[1659299473900,0.52458558,23791.0,23790.0,1.04179133]
[1659299474189,0.52458558,23791.0,23790.0,0.93389133]
[1659299474833,0.52458558,23791.0,23790.0,1.01389133]
[1659299476204,0.52458558,23791.0,23790.0,0.96856449]
[1659299476955,0.52458558,23791.0,23790.0,0.266634]
[1659299477195,0.52458558,23791.0,23790.0,0.0422]
[1659299477655,0.82546558,23791.0,23790.0,0.0422]
[1659299478108,0.82546558,23791.0,23790.0,0.0022]
[1659299478335,1.23272291,23791.0,23790.0,0.0022]
[1659299478583,0.05,23790.0,23789.0,0.00116825]
[1659299478817,0.1,23788.0,23787.0,0.0011]
[1659299479063,0.94523288,23788.0,23787.0,0.0011]
[1659299479317,1.88401288,23788.0,23787.0,0.0011]
[1659299479534,1.88401288,23788.0,23786.0,0.0022]
[1659299479535,1.09284508,23787.0,23786.0,0.0022]
[1659299479758,2.13251241,23787.0,23786.0,0.0022]
[1659299480219,0.05,23786.0,23785.0,0.0022]
[1659299480501,2.29227409,23786.0,23785.0,0.0022]
[1659299480718,2.29227409,23786.0,23781.0,0.0033]
[1659299480719,0.05,23783.0,23781.0,0.0033]
[1659299480964,0.48879733,23783.0,23781.0,0.0033]
[1659299481190,0.83967733,23783.0,23781.0,0.0033]
[1659299482570,0.847298,23783.0,23781.0,0.0033]
[1659299482801,0.926298,23783.0,23781.0,0.0033]
[1659299483518,0.844758,23783.0,23781.0,0.00338127]
[1659299483733,0.89738501,23783.0,23781.0,0.00338127]
[1659299484185,0.81838501,23783.0,23781.0,0.00338127]
[1659299484442,0.81838501,23783.0,23781.0,0.0033]
[1659299484901,0.89738501,23783.0,23781.0,0.00338127]
[1659299485132,0.92892501,23783.0,23781.0,0.00338127]
[1659299485611,0.89738501,23783.0,23781.0,0.00338127]
[1659299485839,0.92892501,23783.0,23781.0,0.0033]
[1659299486067,0.81838501,23783.0,23781.0,0.00336253]
[1659299486301,0.84992501,23783.0,23781.0,0.00336253]
[1659299486742,0.92892501,23783.0,23781.0,0.00336253]
[1659299487259,0.92892501,23783.0,23781.0,0.0033]
[1659299487512,0.89738501,23783.0,23781.0,0.00336174]
[1659299487738,0.92892501,23783.0,23781.0,0.00336174]
[1659299488289,0.84992501,23783.0,23781.0,0.00336174]
[1659299488607,0.84492501,23783.0,23781.0,0.0033]
[1659299488747,0.81338501,23783.0,23781.0,0.00336174]
[1659299488944,0.92392501,23783.0,23781.0,0.00336174]
[1659299489171,0.89238501,23783.0,23781.0,0.00336174]
[1659299489989,0.89238501,23783.0,23781.0,0.0033]
[1659299490261,0.89238501,23783.0,23780.0,0.0022]
[1659299490262,0.14488,23781.0,23780.0,0.0022]
[1659299490497,1.1,23780.0,23779.0,0.0022]
[1659299490723,1.1,23779.0,23778.0,0.00135402]
[1659299490960,1.80813733,23779.0,23778.0,0.00135402]
[1659299491183,2.41727733,23779.0,23777.0,0.0022]
[1659299491410,0.75813733,23778.0,23777.0,0.0022]
[1659299491638,1.26031307,23778.0,23777.0,0.0022]
[1659299491868,1.39185307,23778.0,23777.0,0.0022]
[1659299492122,1.36031307,23778.0,23777.0,0.0022]
[1659299492361,1.39185307,23778.0,23777.0,0.0022]
[1659299492797,1.36031307,23778.0,23777.0,0.0022]
[1659299493012,1.42631307,23778.0,23777.0,0.0022]
[1659299493473,1.45785307,23778.0,23777.0,0.0022]
[1659299493706,1.42631307,23778.0,23777.0,0.0022]
[1659299494157,1.36793374,23778.0,23777.0,0.0022]
[1659299494656,1.31793374,23778.0,23777.0,0.0022]
[1659299494858,1.21793374,23778.0,23777.0,0.0022]
[1659299495086,1.29693374,23778.0,23777.0,0.0022]
[1659299496052,1.30464278,23778.0,23777.0,0.0022]
[1659299496251,1.22564278,23778.0,23777.0,0.0017]
[1659299496940,1.23164278,23778.0,23777.0,0.0677]
[1659299497399,1.28164278,23778.0,23777.0,0.0677]
[1659299497626,0.81676478,23778.0,23777.0,0.0677]
[1659299498081,0.45988478,23778.0,23777.0,0.4017]
[1659299498309,0.45988478,23778.0,23777.0,1.44112781]
[1659299498783,0.06498604,23778.0,23777.0,1.47580097]
[1659299499035,0.06498604,23778.0,23777.0,2.09765771]
[1659299499256,0.02619762,23779.0,23778.0,0.01961367]
[1659299499489,0.02619762,23779.0,23778.0,0.52467467]
[1659299499733,0.02619762,23779.0,23778.0,1.156508]
[1659299500000,0.02619762,23779.0,23778.0,1.16915148]
[1659299500233,0.02619762,23779.0,23778.0,1.37928148]
[1659299500692,0.12846334,23779.0,23778.0,1.37928148]
[1659299500933,0.12846334,23779.0,23778.0,1.45828148]
[1659299501857,0.12846334,23779.0,23778.0,1.45873566]
[1659299502087,0.12846334,23779.0,23778.0,1.37973566]
[1659299503005,0.12846334,23779.0,23778.0,1.45873566]
[1659299503765,0.12846334,23779.0,23778.0,1.49027566]
[1659299503997,0.00934849,23779.0,23778.0,2.09027566]
[1659299504243,0.06486659,23779.0,23778.0,2.43146466]
[1659299504470,0.06486659,23779.0,23778.0,2.41882118]
[1659299504699,0.10504,23783.0,23780.0,0.1]
[1659299504938,0.10504,23783.0,23782.0,0.6137]
[1659299504939,0.05512865,23783.0,23782.0,0.6137]
[1659299505160,0.05512865,23783.0,23782.0,1.84548833]
[1659299505404,0.05512865,23783.0,23782.0,1.54548833]
[1659299505661,0.03152,23797.0,23786.0,0.05]
[1659299505662,0.5778,23795.0,23786.0,0.05]
[1659299505895,0.5778,23795.0,23793.0,0.0637]
[1659299505896,0.62487774,23795.0,23793.0,0.0637]
[1659299506117,0.105029,23797.0,23793.0,0.09837316]
[1659299506352,0.45889396,23796.0,23793.0,0.09837316]
[1659299506586,0.00762067,23795.0,23794.0,0.05]
[1659299506811,0.45889396,23796.0,23793.0,0.09837316]
[1659299507051,0.45889396,23796.0,23793.0,0.0637]
[1659299507297,0.45889396,23796.0,23794.0,0.08467316]
[1659299507558,0.45889396,23796.0,23791.0,0.0634]
[1659299507777,0.45889396,23796.0,23791.0,0.07604348]
[1659299507993,0.45889396,23796.0,23792.0,0.105012]
[1659299507994,0.16834207,23795.0,23792.0,0.105012]
[1659299508219,0.17596274,23795.0,23791.0,0.28606848]
[1659299508459,0.40725733,23794.0,23790.0,0.105027]
[1659299508673,0.30088,23793.0,23790.0,0.105027]
[1659299508932,0.8162188,23792.0,23788.0,0.315097]
[1659299509158,0.11265567,23791.0,23789.0,0.05]
[1659299509384,0.11265567,23791.0,23788.0,0.105037]
[1659299509385,0.10844839,23790.0,23788.0,0.105037]
[1659299510106,0.10844839,23790.0,23785.0,0.83772848]
[1659299510336,0.10844839,23790.0,23785.0,1.13994781]
[1659299510558,0.10844839,23790.0,23786.0,0.524474]
[1659299510790,0.21348639,23790.0,23787.0,0.13970516]
[1659299511039,0.21348639,23790.0,23787.0,0.15234864]
[1659299511969,0.04720688,23789.0,23787.0,0.15234864]
[1659299512206,0.09034735,23788.0,23787.0,0.11767548]
[1659299512433,0.09034735,23788.0,23787.0,0.105032]
[1659299512871,0.16934735,23788.0,23787.0,0.13970516]
[1659299513121,0.16934735,23788.0,23787.0,0.105032]
[1659299513340,0.17696802,23788.0,23787.0,0.105032]
[1659299513573,0.16934735,23788.0,23787.0,0.105032]
[1659299514251,0.09034735,23788.0,23787.0,0.105032]
[1659299514487,0.09034735,23788.0,23787.0,0.13970516]
[1659299514942,0.16934735,23788.0,23787.0,0.105032]
[1659299515930,0.17522312,23788.0,23787.0,0.105032]
[1659299516164,0.09622312,23788.0,23787.0,0.41767548]
[1659299517047,0.17322312,23788.0,23787.0,0.44712949]
[1659299517704,0.17322312,23788.0,23787.0,0.44667548]
[1659299518619,0.09622312,23788.0,23787.0,0.41767548]
[1659299518871,0.17322312,23788.0,23787.0,0.44667548]
[1659299519562,0.18084379,23788.0,23787.0,0.14667548]
[1659299519995,0.17322312,23788.0,23787.0,0.14667548]
[1659299520216,0.09622312,23788.0,23787.0,0.11767548]
[1659299520674,0.09622312,23788.0,23787.0,0.41767548]
[1659299520886,0.17622312,23788.0,23787.0,0.41767548]
[1659299521317,0.17622312,23788.0,23787.0,0.11767548]
[1659299521541,0.17622312,23788.0,23787.0,0.105032]
[1659299521794,0.47710312,23788.0,23787.0,0.105032]
[1659299522227,0.39710312,23788.0,23787.0,0.105032]
[1659299522457,0.39710312,23788.0,23782.0,0.66673013]
[1659299522458,1.10436045,23788.0,23782.0,0.66673013]
[1659299522709,0.75789039,23787.0,23780.0,7.651e-05]
[1659299522938,0.2507654,23786.0,23781.0,0.0125483]
[1659299523177,0.10081612,23785.0,23780.0,0.40733384]
[1659299523400,0.50807345,23785.0,23779.0,0.01264348]
[1659299523631,0.51435958,23784.0,23780.0,6.227e-05]
[1659299523857,0.80973691,23783.0,23780.0,6.227e-05]
[1659299524095,0.14962901,23782.0,23780.0,6.227e-05]
[1659299524331,0.14962901,23782.0,23780.0,0.03473543]
[1659299524555,0.14962901,23782.0,23780.0,0.04737891]
[1659299524785,0.14962901,23782.0,23780.0,0.01264348]
[1659299525018,0.17862901,23782.0,23780.0,0.08964348]
[1659299525241,0.17862901,23782.0,23780.0,0.12437891]
[1659299525474,0.18624968,23782.0,23780.0,0.12437891]
[1659299525756,0.18624968,23782.0,23780.0,0.08970575]
[1659299526231,0.14962901,23782.0,23780.0,0.01264348]
[1659299526469,0.15724968,23782.0,23780.0,0.01270575]
[1659299526703,0.15724968,23782.0,23780.0,0.22283775]
[1659299526932,0.15717233,23782.0,23780.0,0.60083775]
[1659299527367,0.15717233,23782.0,23780.0,0.60077548]
[1659299527602,0.67980979,23782.0,23780.0,0.63544864]
[1659299527846,0.14955166,23782.0,23780.0,0.60083988]
[1659299528064,0.15836594,23782.0,23780.0,0.60083988]
[1659299528330,0.26342794,23782.0,23780.0,0.52283988]
[1659299528542,0.26342794,23782.0,23780.0,0.55751304]
[1659299528763,0.26342794,23782.0,23780.0,0.55744864]
[1659299528980,0.26342794,23782.0,23780.0,0.6355138]
[1659299529652,0.81472842,23782.0,23781.0,0.05]
[1659299529882,0.81472842,23782.0,23780.0,1.1734814]
[1659299530102,0.81472842,23782.0,23781.0,0.01264348]
[1659299530989,0.26342794,23782.0,23781.0,0.01264348]
[1659299531428,0.26342794,23782.0,23781.0,0.09064348]
[1659299531665,0.26342794,23782.0,23781.0,0.39064348]
[1659299532119,0.27104861,23782.0,23781.0,0.39064348]
[1659299532344,0.27104861,23782.0,23781.0,0.078]
[1659299532581,0.27104861,23782.0,23780.0,0.7355278]
[1659299532803,0.26342794,23782.0,23780.0,0.77020096]
[1659299533013,0.26342794,23782.0,23781.0,0.078]
[1659299534188,0.27104861,23782.0,23781.0,0.3]
[1659299534428,0.26342794,23782.0,23781.0,0.3]
[1659299534938,0.28842794,23782.0,23781.0,0.377]
[1659299535377,0.29604861,23782.0,23781.0,0.377]
[1659299535835,0.85494894,23782.0,23781.0,0.077]
[1659299536274,0.82994894,23782.0,23780.0,0.73552774]
[1659299536962,0.82232827,23782.0,23781.0,0.05]
[1659299537198,0.82994894,23782.0,23780.0,0.735463]
[1659299537405,0.84732827,23782.0,23781.0,0.3]
[1659299537862,0.84732827,23782.0,23781.0,0.33467316]
[1659299538100,0.84732827,23782.0,23780.0,0.81252776]
[1659299538323,0.84732827,23782.0,23780.0,0.812463]
[1659299538571,0.82994894,23782.0,23780.0,0.74801681]
[1659299539035,0.85494894,23782.0,23781.0,0.35]
[1659299539250,0.85494894,23782.0,23781.0,0.3]
[1659299539477,0.84732827,23782.0,23781.0,0.3]
[1659299539707,0.28842794,23782.0,23781.0,0.3]
[1659299539930,0.28842794,23782.0,23780.0,0.8250168]
[1659299540143,0.26342794,23782.0,23780.0,0.7480168]
[1659299540834,0.26342794,23782.0,23780.0,0.78268996]
[1659299541142,0.28842794,23782.0,23780.0,0.82495205]
[1659299541235,0.28842794,23782.0,23780.0,0.8250168]
[1659299541974,0.39350194,23782.0,23781.0,0.05]
[1659299542213,0.39350194,23782.0,23780.0,0.74795205]
[1659299542214,0.85538716,23782.0,23780.0,0.74795205]
[1659299542454,0.36850194,23782.0,23781.0,0.08467316]
[1659299542671,0.26342794,23782.0,23781.0,0.33467316]
[1659299542896,0.85023506,23782.0,23781.0,0.33467316]
[1659299543349,0.85785573,23782.0,23781.0,0.3]
[1659299543576,0.85023506,23782.0,23781.0,0.3]
[1659299544235,0.82123506,23782.0,23781.0,0.3]
[1659299544465,0.27104861,23782.0,23781.0,0.3]
[1659299544673,0.26342794,23782.0,23781.0,0.3]
[1659299544896,0.26342794,23782.0,23781.0,0.378]
[1659299545336,0.27104861,23782.0,23781.0,0.078]
[1659299545573,0.26342794,23782.0,23781.0,0.078]
[1659299545827,0.79458844,23782.0,23781.0,0.378]
[1659299546046,0.79458844,23782.0,23781.0,0.3]
[1659299546308,0.80220911,23782.0,23781.0,0.3]
[1659299546758,0.79458844,23782.0,23781.0,0.3]
[1659299546985,0.79458844,23782.0,23781.0,0.378]
[1659299547695,0.79458844,23782.0,23781.0,0.078]
[1659299547926,0.79458844,23782.0,23781.0,0.378]
[1659299548143,0.79458844,23782.0,23781.0,0.3]
[1659299548829,0.79458844,23782.0,23780.0,0.76066028]
[1659299549051,0.79458844,23782.0,23781.0,0.428]
[1659299549505,0.26342794,23782.0,23781.0,0.428]
[1659299550001,0.26332924,23782.0,23781.0,0.428]
[1659299550197,0.26332924,23782.0,23781.0,0.35]
[1659299550867,0.26332924,23782.0,23781.0,0.44064348]
[1659299551082,0.27094991,23782.0,23781.0,0.44064348]
[1659299551337,0.26332924,23782.0,23781.0,0.47531664]
[1659299551559,0.26332924,23782.0,23781.0,0.42531664]
[1659299551775,0.26332924,23782.0,23781.0,0.39064348]
[1659299551998,0.27094991,23782.0,23781.0,0.39064348]
[1659299552238,0.26332924,23782.0,23781.0,0.31264348]
[1659299552707,0.80181822,23782.0,23781.0,0.31264348]
[1659299552922,0.80181822,23782.0,23781.0,0.39064348]
[1659299553602,0.80943889,23782.0,23781.0,0.378]
[1659299553897,0.80181822,23782.0,23781.0,0.378]
[1659299554108,0.80181822,23782.0,23781.0,0.3]
[1659299554633,0.80943889,23782.0,23781.0,0.3]
[1659299554995,0.83081822,23782.0,23781.0,0.41188855]
[1659299555200,0.29232924,23782.0,23781.0,0.53256605]
[1659299555405,0.18726724,23782.0,23781.0,0.53256605]
[1659299556495,0.18726724,23782.0,23781.0,0.93982338]
[1659299556715,0.07365559,23782.0,23781.0,1.3612103]
[1659299556945,0.105045,23790.0,23784.0,0.1]